Cogmind - Beta 15 @@@ ROGUE MODE // 2025.06.01 @ 13:34:20 Player: Demo Result: Destroyed by Hotshot with Precision Phase Gun Performance ------------- Evolutions (8) 4000 Regions Visited (13) 2600 Robots Destroyed (139) 695 Value Destroyed (7172) 7172 Prototype IDs (14) 280 Alien Tech Used (3) 600 Bonus (3640) 3640 TOTAL SCORE: 18987 Bonus ------- Pacifist 200 High Alert Combat Kills 1940 Entered DSFs 1000 Scanned by Researcher 500 Cogmind --------- Core Integrity 0/1450 Matter 13/300 Energy 200/200 System Corruption 30% Temperature Cool (9) Movement Walking (120) Location -2/Protoforge Parts ------- > --- POWER (2) -------- Micro Antimatter Reactor Micro Antimatter Reactor > --- PROPULSION (6) --- Armored Medium Treads Centrium Leg Centrium Leg Centrium Leg Centrium Leg > --- UTILITY (9) ------ High-capacity Storage Unit Advanced Signal Interpreter Weapon Mount Hardened Heavy Armor Plating Graphene Brace Advanced Dynamic Insulation System High-powered Tractor Beam > --- WEAPON (6) ------- Enhanced Hardcell Cannon > --- INVENTORY (20) --- Heavy Shield Leg High-density Centrium Wheel High-density Centrium Wheel Advanced Heat Sink Advanced Heat Sink Advanced Heat Sink Advanced Heat Sink Advanced Matter Compressor (0) Core Cannon Peak State ------------ > --- POWER ------------ Quantum Reactor Light Quantum Reactor > --- PROPULSION ------- Centrium Leg Centrium Leg Centrium Leg Centrium Leg Centrium Leg Centrium Leg > --- UTILITY ---------- Advanced Heat Sink High-capacity Storage Unit Advanced Sensor Array Advanced Recoil Stabilizer Precision Matter Filter Advanced Phase Shifter Advanced Thermal Shield Improved Remote Force Field Advanced Dynamic Insulation System > --- WEAPON ----------- Precision Phase Gun Long-range Phase Cannon Core Cannon Compact Linear Accelerator Compact Linear Accelerator > --- INVENTORY -------- Micro Antimatter Reactor Light Quantum Reactor Centrium Leg Centrium Leg Heavy Shield Leg High-density Centrium Wheel High-density Centrium Wheel High-density Centrium Wheel Matter Compressor Precision Matter Filter Advanced ECM Suite High-powered Tractor Beam Long-range Phase Cannon Enhanced Hardcell Cannon Compact Linear Accelerator Compact Linear Accelerator Heavy Missile Launcher [Rating: 206] Favorites ----------- Power Light Quantum Reactor Power Core Backup Power VII Reactor Light Quantum Reactor Propulsion Centrium Leg Treads Light Treads Leg Centrium Leg Wheel Wheel Hover Unit Gravmag System Flight Unit Cesium-ion Thruster Utility Advanced Heat Sink Device Advanced Heat Sink Storage High-capacity Storage Unit Processor Melee Analysis Suite Protection Improved Medium Armor Plating Weapon Compact Linear Accelerator Energy Gun Precision Phase Gun Energy Cannon Long-range Phase Cannon Ballistic Gun KE Penetrator Ballistic Cannon Compact Linear Accelerator Launcher Heavy Missile Launcher Impact Weapon Heavy Hammer Slashing Weapon Axe Build | -11 -10 -9 -8 -7 -6 -5 -5 -4 -3 -3 -2 -2 -2 ------- Run | Yrd Mat Mat Mat Fac Fac Fac DSF Fac Res DSF Res Qua Frg Slots Evolved 16 | . . 2 2 2 2 2 . 2 2 . 2 . . Power 1 | . . . . . . . . . . . 1 . . Propulsion 4 | . . 2 2 . . . . . . . . . . Utility 7 | . . . . . 2 2 . 2 . . 1 . . Weapon 4 | . . . . 2 . . . . 2 . . . . Parts Attached 192 | 2 3 4 9 8 20 3 1 12 . 25 38 66 1 Power 26 | . . . . . 2 . . 1 . 3 9 10 1 Engine . | . . . . . . . . . . . . . . Core 3 | . . . . . 2 . . 1 . . . . . Reactor 23 | . . . . . . . . . . 3 9 10 1 Propulsion 49 | 2 1 2 6 5 7 . . 2 . 10 3 11 . Treads 9 | 2 1 2 1 2 . . . . . . . 1 . Leg 20 | . . . . 2 . . . . . 6 3 9 . Wheel 2 | . . . 1 . . . . . . . . 1 . Hover 15 | . . . 1 1 7 . . 2 . 4 . . . Flight 3 | . . . 3 . . . . . . . . . . Utility 75 | . 2 1 . 2 4 3 1 8 . 6 19 29 . Device 40 | . . 1 . . . . . 3 . 3 15 18 . Storage 7 | . . . . . 2 . . 2 . . 1 2 . Processor 15 | . 2 . . 2 2 1 . 2 . 1 2 3 . Hackware . | . . . . . . . . . . . . . . Protection 13 | . . . . . . 2 1 1 . 2 1 6 . Artifact . | . . . . . . . . . . . . . . Weapon 42 | . . 1 3 1 7 . . 1 . 6 7 16 . Energy Gun 9 | . . . . . 1 . . . . . 3 5 . Energy Cannon 6 | . . . . . . . . . . 2 1 3 . Ballistic Gun 4 | . . . . . . . . . . . 2 2 . Ballistic Cannon 8 | . . . . . . . . . . 4 . 4 . Launcher 5 | . . 1 2 1 . . . . . . 1 . . Special Weapon . | . . . . . . . . . . . . . . Impact Weapon 1 | . . . 1 . . . . . . . . . . Slashing Weapon 9 | . . . . . 6 . . 1 . . . 2 . Piercing Weapon . | . . . . . . . . . . . . . . Special Melee Weapon . | . . . . . . . . . . . . . . Unidentified Prototypes 17 | . . . 2 . . . . 1 . 1 5 8 . Parts Lost 90 | . . . 8 1 1 . 1 9 . 6 17 45 2 Power 13 | . . . . . . . . 1 . . 3 9 . Propulsion 22 | . . . 6 1 1 . 1 4 . 4 1 3 1 Utility 34 | . . . 1 . . . . 3 . 2 9 18 1 Weapon 21 | . . . 1 . . . . 1 . . 4 15 . Highest Loss Streak 8 | . . . 3 1 1 . 1 6 . 2 6 8 2 To Critical Strikes 3 | . . . 1 . . . . . . . 1 1 . Average Backups 12 | . 2 4 4 5 8 9 10 13 14 14 14 16 9 Power 1 | . . . . . 1 1 1 . . 1 2 1 . Propulsion 3 | . . . . . . . . . . 2 4 5 3 Utility 5 | . 1 2 1 1 4 6 7 10 10 8 5 5 5 Weapon 2 | . . 1 3 4 2 2 2 2 4 2 2 3 1 Tool/Special . | . . . . . . . . . . . . . . Unused Backups 38 | . . 1 3 . 12 . 1 3 . 3 3 8 4 Power 4 | . . . . . 2 . . . . . 2 . . Propulsion 8 | . . . . . . . . . . . . 5 3 Utility 21 | . . . 2 . 7 . 1 3 . 3 1 3 1 Weapon 4 | . . . 1 . 3 . . . . . . . . Tool/Special 1 | . . 1 . . . . . . . . . . . Average Slot Usage (%) 83 | . 31 66 56 64 89 92 90 86 57 79 94 88 69 Core 1 | . . . . . 5 5 5 5 4 . . . . Reactor 4 | . . . . . . . . . . 3 7 7 7 Treads 4 | . 28 43 13 13 1 . . . . . . . 4 Leg 14 | . . . . 2 . . . . . 10 25 24 20 Hover 7 | . . . 7 6 29 35 31 25 9 13 . . . Flight 1 | . . . 12 12 4 . . . . . . . . Device 13 | . . . 8 . . . . 4 4 3 17 23 18 Storage 3 | . . . . . 4 5 5 5 4 4 4 4 4 Processor 11 | . 3 21 9 11 19 21 23 23 28 21 12 4 4 Protection 1 | . . . . . . 5 5 7 . 2 1 1 4 Energy Gun 3 | . . . 4 7 3 . . . . . 2 5 . Energy Cannon 2 | . . . . . . . . . . 3 2 3 . Ballistic Cannon 6 | . . . . . . . . . . 11 16 7 4 Slashing Weapon 3 | . . . . . 17 17 17 14 4 1 . . . Peak Build Rating 206 | 2 4 7 16 29 66 74 73 92 58 164 196 206 126 Average Rating 120 | 1 2 6 12 20 50 72 70 80 57 121 175 171 123 On Entrance 59 | . 2 4 6 12 29 65 73 69 57 58 164 191 109 Naked Turns . | . . . . . . . . . . . . . . Heaviest Build 152 | . . 1 3 1 27 32 34 54 28 95 148 152 100 Greatest Support 180 | 3 3 3 3 3 58 58 58 59 30 120 180 180 148 Greatest Overweight (x) 6 | . . . . . 6 . . 1 . 1 . . . Average Overweight (x) . | . . . . . . . . . . . . . . Largest Inventory Capacity 20 | 5 5 5 5 5 10 10 10 15 15 15 20 20 20 Average Capacity 14 | 5 5 5 5 5 8 10 10 14 15 15 15 20 20 Most Carried 20 | . 5 5 5 5 10 10 10 15 15 15 20 20 14 Average Carried 13 | . 2 4 4 4 8 9 10 13 14 14 15 19 11 Final Capacity 20 | 5 5 5 5 5 10 10 10 15 15 15 20 20 20 Final Carried 17 | . 5 5 5 5 10 10 10 14 15 15 17 14 11 Class Distribution -------------------- 21% | Scavenger-Executioner 19% | Mutant 12% | Gladiator 12% | Executioner 9% | Scavenger-Tank 7% | Scavenger-Gladiator 5% | Scavenger-Skirmisher 4% | Gunner Dominant Class ---------------- Mutant | -10/Materials Mutant | -9/Materials Mutant | -8/Materials Mutant | -7/Factory Gladiator | -6/Factory Gladiator | -5/Factory Scavenger-Gladiator | -5/DSF Gladiator | -4/Factory Mutant | -3/Research Gunner | -3/DSF Scavenger-Executioner | -2/Research Scavenger-Executioner | -2/Quarantine Scavenger-Mutant | -2/Protoforge Resources | -11 -10 -9 -8 -7 -6 -5 -5 -4 -3 -3 -2 -2 -2 ----------- Run | Yrd Mat Mat Mat Fac Fac Fac DSF Fac Res DSF Res Qua Frg Matter Collected 6301 | 98 . . 127 94 722 146 . 121 . 526 2060 2407 . Remotely 46 | . . . . . . . . . . . 46 . . Salvage Created 6228 | . . 62 30 47 756 . . 622 . 259 1834 2618 . Parts 246 | . . 10 10 3 33 . . 26 . 12 57 95 . Haulers Intercepted 3 | . . . . . . . . 1 . . 1 1 . Recyclers Shooed 3 | . . 1 . . . . . . . . 1 1 . Parts Field Recycled . | . . . . . . . . . . . . . . Retrieved Matter . | . . . . . . . . . . . . . . Parts Self-Destructed . | . . . . . . . . . . . . . . Prevented . | . . . . . . . . . . . . . . Kills | -11 -10 -9 -8 -7 -6 -5 -5 -4 -3 -3 -2 -2 -2 ------- Run | Yrd Mat Mat Mat Fac Fac Fac DSF Fac Res DSF Res Qua Frg Combat Hostiles Destroyed 104 | . . 7 8 3 7 . . 2 . 9 27 41 . Melee 4 | . . . . . 1 . . 2 . 1 . . . Guns 14 | . . . . . . . . . . . 2 12 . Cannons 46 | . . . . . . . . . . 3 21 22 . AOE 34 | . . 7 7 3 6 . . . . 5 3 3 . Classes Destroyed 19 | . . 3 . . 6 . . 2 . 4 1 3 . Worker 7 | . . . . . 2 . . 1 . . 2 2 . Builder 8 | . . 1 . . 1 . . . . . . 6 . Hauler 3 | . . . . . . . . 1 . . 1 1 . Recycler 8 | . . . . . 4 . . 2 . . 1 1 . Mechanic 1 | . . . . . 1 . . . . . . . . Operator 3 | . . . . . 1 . . 1 . . . 1 . Watcher 4 | . . 1 . . 1 . . 1 . . . 1 . Swarmer 25 | . . 7 8 3 3 . . . . 3 1 . . Cutter 2 | . . . . . . . . . . 2 . . . Saboteur 1 | . . . . . . . . . . . . 1 . Grunt 29 | . . . . . 3 . . . . . 13 13 . Duelist 5 | . . . . . . . . . . . 1 4 . Protector 1 | . . . . . . . . . . . . 1 . Researcher 1 | . . . . . . . . . . . . 1 . Sentry 3 | . . . . . . . . 2 . . 1 . . Specialist 1 | . . . . . . . . . . 1 . . . Hunter 18 | . . . . . . . . . . 2 7 9 . Programmer 18 | . . . . . 1 . . . . . 4 13 . Heavy 1 | . . . . . . . . . . 1 . . . Best Kill Streak 8 | . . 6 4 3 5 . . 3 . 3 8 5 . Combat Bots Only 8 | . . 4 4 3 3 . . 1 . 3 8 4 . Max Kills in Single Turn 5 | . . 4 3 3 5 . . 1 . 2 3 2 . Gunslinging . | . . . . . . . . . . . . . . Exploded 3 | . . 3 3 3 3 . . . . 2 3 1 . Melee 1 | . . . . . 1 . . 1 . 1 . . . Uniques/NPCs Destroyed . | . . . . . . . . . . . . . . Combat | -11 -10 -9 -8 -7 -6 -5 -5 -4 -3 -3 -2 -2 -2 -------- Run | Yrd Mat Mat Mat Fac Fac Fac DSF Fac Res DSF Res Qua Frg Hostile Shots Fired 1569 | . 24 46 82 33 14 . 5 103 . 107 380 714 61 Missed 570 | . 10 17 22 18 6 . 3 40 . 37 133 260 24 Deflected 6 | . . . . . . . . . . . . 6 . Hits 999 | . 14 29 60 15 8 . 2 63 . 70 247 454 37 Melee 15 | . . . . . . . . . . 1 2 12 . Projectile 984 | . 14 29 60 15 8 . 2 63 . 69 245 442 37 AOE 5 | . . . . . . . . 1 . 4 . . . Critical Strikes 31 | . . . 2 . 1 . . . . 3 8 17 . Actively Blocked 5 | . . . . . . . . . . . . 5 . Part Disruptions 5 | . . . . . . . . . . . 1 4 . Actively Blocked 3 | . . . . . . . . . . . . 3 . Damage Taken 21502 | . 200 425 833 229 194 . 150 1490 . 1693 5543 10190 555 Core 2309 | . 48 123 177 106 . . . 317 . 141 385 984 28 Absorbed by Shields 142 | . . . . . . . . . . . 142 . . Redirected to Shielding 411 | . . . . . . . 98 . . . . 313 . Ignored by Resistances 178 | . . . . . . . . . . . 130 48 . Regen/Repaired (Parts) 603 | . . . . . . . . . . . . 603 . Core Remaining (%) 84 | 100 80 69 67 84 100 . 100 72 . 89 . . . Volleys Fired 268 | . . 4 10 1 3 . . . . 18 69 153 10 Largest 6 | . . 1 2 1 1 . . . . 4 6 6 1 Hottest 478 | . . 30 60 39 39 . . . . 232 431 478 58 Shots Fired 774 | . . 4 17 1 3 . . . . 38 235 466 10 Gun 252 | . . . 14 . . . . . . . 61 177 . Cannon 499 | . . . . . . . . . . 33 171 285 10 Launcher 23 | . . 4 3 1 3 . . . . 5 3 4 . Special . | . . . . . . . . . . . . . . Kinetic 454 | . . . . . . . . . . 33 181 230 10 Thermal 261 | . . . 14 . . . . . . . 47 200 . Explosive 20 | . . 4 3 1 3 . . . . 5 . 4 . Electromagnetic 39 | . . . . . . . . . . . 7 32 . Robot Hit Streak 17 | . . 1 5 2 . . . . . 6 17 13 . Robot Miss Streak 9 | . . . 6 . 1 . . . . 3 5 9 . Penetration Max 3 | . . . . . . . . . . . 1 3 . Secondary Targets 1 | . . . . . . . . . . . . 1 . Max Gunslinging Chain 1 | . . . . . . . . . . . . 1 . Shots Hit Robots 457 | . . 1 8 1 13 . . 32 . 23 136 243 . Core Hits 255 | . 2 10 11 2 21 . . 11 . 19 74 105 . Critical Kills 5 | . . . . . . . . . . . . 5 . Critical Parts Destroyed 16 | . . . 1 . . . . . . . 3 12 . Critical Strikes 55 | . . . 1 . 1 . . 4 . 1 16 32 . Burn 5 | . . . . . . . . . . . 2 3 . Meltdown 4 | . . . . . . . . . . . . 4 . Destroy 16 | . . . . . . . . . . . 3 13 . Blast 24 | . . . . . . . . . . 1 11 12 . Smash 1 | . . . 1 . . . . . . . . . . Sever 5 | . . . . . 1 . . 4 . . . . . Melee Attacks 125 | . . . 3 . 53 . 1 54 . 1 . 13 . Impact 3 | . . . 3 . . . . . . . . . . Slashing 122 | . . . . . 53 . 1 54 . 1 . 13 . Piercing . | . . . . . . . . . . . . . . Sneak Attacks 14 | . . . . . 8 . . 4 . 1 . 1 . Combat Hostiles 1 | . . . . . . . . . . 1 . . . Follow-up Attacks 9 | . . . . . 1 . . 8 . . . . . Damage Inflicted 26132 | . 39 761 417 217 2140 . . 2017 . 1259 6578 12704 . Guns 4317 | . . . 33 . . . . . . . 1394 2890 . Cannons 13297 | . . . . . . . . . . 615 4004 8678 . Explosions 4934 | . . 761 354 217 1248 . . . . 554 966 834 . Melee 3180 | . . . 25 . 892 . . 2017 . 90 . 156 . Ramming 404 | . 39 . 5 . . . . . . . 214 146 . Kinetic 9768 | . . . . . . . . . . 615 4214 4939 . Thermal 7763 | . . . 33 . . . . . . . 1517 6213 . Explosive 3968 | . . 761 354 217 1248 . . . . 554 . 834 . Electromagnetic 1049 | . . . . . . . . . . . 633 416 . Impact 25 | . . . 25 . . . . . . . . . . Slashing 3155 | . . . . . 892 . . 2017 . 90 . 156 . Piercing . | . . . . . . . . . . . . . . Highest Corruption 30 | . 2 . . . . . . . . 4 13 30 30 Average Corruption 13 | . 1 . . . . . . . . 4 4 18 30 Corruption Purged . | . . . . . . . . . . . . . . Corruption Blocked . | . . . . . . . . . . . . . . Effects 154 | . . . . . . . . . . 9 22 119 4 Message Errors 25 | . . . . . . . . . . 2 2 19 2 Matter Fused 24 | . . . . . . . . . . . 3 21 . Heat Flow Errors 17 | . . . . . . . . . . 1 3 13 . Energy Discharges 21 | . . . . . . . . . . . 2 19 . Parts Rejected 3 | . . . . . . . . . . . . 2 1 Parts Fused 2 | . . . . . . . . . . . . 2 . Data Loss (minor) 23 | . . . . . . . . . . 4 5 13 1 Data Loss (major) 5 | . . . . . . . . . . . . 5 . Misfires 5 | . . . . . . . . . . 1 3 1 . Alerts 4 | . . . . . . . . . . . 2 2 . Misdirections 2 | . . . . . . . . . . . . 2 . Weapon Failures 23 | . . . . . . . . . . 1 2 20 . Overload Shots . | . . . . . . . . . . . . . . Overflow Damage 1836 | . . 36 50 37 323 . . 154 . 52 324 860 . Projectiles 1030 | . . . . . . . . . . 13 193 824 . Explosions 380 | . . 36 25 37 113 . . . . 39 130 . . Melee 426 | . . . 25 . 210 . . 154 . . 1 36 . Knockbacks 91 | . . . . . . . . . . 7 31 53 . Impact . | . . . . . . . . . . . . . . Kinetic 83 | . . . . . . . . . . 7 27 49 . Secondary 8 | . . . . . . . . . . . 4 4 . Self-Inflicted Damage 712 | . 17 126 72 . 69 . . . . 123 305 . . Shots 16 | . . 3 3 . 1 . . . . 4 5 . . Rammed 19 | . 10 . 9 . . . . . . . . . . Targets Rammed 37 | . 10 . 9 . . . . . . . 12 6 . Kicked 18 | . . . . . . . . . . . 12 6 . Crushed . | . . . . . . . . . . . . . . Highest Temperature 541 | . . . . . . . . . . 360 369 541 . Average Temperature 118 | . . . . . . . . . . 93 136 95 . Received Heat Transfer 2016 | . 108 75 153 108 . . . 300 . . 561 603 108 Effects 8 | . . . . . . . . . . . 6 2 . Shutdowns 2 | . . . . . . . . . . . 2 . . Energy Bleed 1 | . . . . . . . . . . . 1 . . Interference 3 | . . . . . . . . . . . 3 . . Matter Decay 2 | . . . . . . . . . . . . 2 . Siege Activations . | . . . . . . . . . . . . . . Martial Activations . | . . . . . . . . . . . . . . Shielding Activations 3 | . . . . . . . . . . . . 3 . Total Turns 74 | . . . . . . . . . . . . 74 . Longest Duration 43 | . . . . . . . . . . . . 43 . Robots Disrupted . | . . . . . . . . . . . . . . Combat Hostiles . | . . . . . . . . . . . . . . Robots Corrupted 4 | . . . 1 . . . . . . . 2 1 . Combat Hostiles 3 | . . . 1 . . . . . . . 1 1 . Parts Fried 8 | . . . . . . . . . . . 4 4 . Impact Corruptions 7 | . . . 2 . . . . . . . 3 2 . Robots Melted 4 | . . . . . . . . . . . . 4 . Combat Hostiles 3 | . . . . . . . . . . . . 3 . Parts Melted 11 | . . . . . . . . . . . . 11 . Heat Transferred 6061 | . . . 148 . . . . . . . 1645 4268 . Parts Sabotaged 3 | . . . . . . . . . . . . 3 . Parts Stolen . | . . . . . . . . . . . . . . Parts Stripped . | . . . . . . . . . . . . . . Power Chain Reactions 2 | . . . . . . . . . . . 2 . . Alert | -11 -10 -9 -8 -7 -6 -5 -5 -4 -3 -3 -2 -2 -2 ------- Run | Yrd Mat Mat Mat Fac Fac Fac DSF Fac Res DSF Res Qua Frg Maximum Alert Level 4 | . . 1 2 1 2 1 . . . 1 3 4 3 Low Security (%) 18 | 100 100 49 13 17 3 . 100 100 100 46 5 . . Level 1 21 | . . 50 56 82 64 100 . . . 53 8 . . Level 2 29 | . . . 29 . 32 . . . . . 34 47 . Level 3 19 | . . . . . . . . . . . 51 22 100 Level 4 11 | . . . . . . . . . . . . 30 . Level 5 . | . . . . . . . . . . . . . . High Security . | . . . . . . . . . . . . . . Max Security . | . . . . . . . . . . . . . . Sterilizations 1 | . . . . . . . . . . 1 . . . Peak Influence 1353 | . . 277 557 366 562 259 181 123 27 360 828 1353 774 Initial 759 | . . . 102 241 164 259 174 94 27 5 202 465 759 Average 541 | . . 145 340 258 379 256 172 83 20 207 637 829 757 Influence Increases 5777 | . . 312 680 235 655 . 17 240 . 415 1236 1966 21 Destroy 0b10 Robot/C 2080 | . . 140 160 60 140 . . 40 . 180 540 820 . Destroy 0b10 Robot/NC 175 | . . 10 . . 50 . . 30 . . 20 65 . Destroy Leader 354 | . . 22 20 10 32 . . 24 . 20 92 134 . Successful Hack 135 | . . . 8 18 38 . . 36 . . . 35 . Select Force Hacks 30 | . . . 30 . . . . . . . . . . Disable Machine 555 | . . 60 . . 135 . . 15 . . 30 315 . Anti-Garrison Action 600 | . . . 200 . 200 . . . . . 200 . . Destroy Structure 873 | . . 35 22 12 60 . 2 20 . 110 204 387 21 Partial Spotted 90 | . . . 45 . . . . 45 . . . . . Lose Combat Pursuer 885 | . . 45 195 135 . . 15 30 . 105 150 210 . Influence Decreases 5057 | . . 70 390 431 460 282 85 369 45 62 768 1443 652 Entered New Map 2177 | . . . 140 291 172 272 75 87 25 2 158 363 592 Time Decay 1993 | . . 70 170 130 278 10 . 205 20 . 440 630 40 Lost Part 877 | . . . 80 10 10 . 10 67 . 60 170 450 20 Lost Ally 10 | . . . . . . . . 10 . . . . . Squads Dispatched 50 | . 1 3 3 1 5 . . 4 . 2 13 18 . Investigation 13 | . . 1 2 1 3 . . 2 . . 2 2 . Extermination 10 | . . . . . 1 . . 1 . . 2 6 . Reinforcement 16 | . 1 2 1 . 1 . . 1 . 2 5 3 . Assault 5 | . . . . . . . . . . . 1 4 . Garrison 6 | . . . . . . . . . . . 3 3 . Intercept . | . . . . . . . . . . . . . . Searches Triggered . | . . . . . . . . . . . . . . Construction Impeded 2 | . . . . . . . . . . . 2 . . Haulers Reinforced 3 | . . . . . . . . . . . 2 1 . Active Scanning Responses . | . . . . . . . . . . . . . . Cargo Convoy Interrupts . | . . . . . . . . . . . . . . Stealth | -11 -10 -9 -8 -7 -6 -5 -5 -4 -3 -3 -2 -2 -2 --------- Run | Yrd Mat Mat Mat Fac Fac Fac DSF Fac Res DSF Res Qua Frg Distress Signals 12 | . 2 1 4 . . . . . . . 3 1 1 Communications Jammed 179 | . . . . . . . . . . . . 179 . Distress Signals 177 | . . . . . . . . . . . . 177 . Times Spotted 240 | . 8 24 28 14 11 . 1 9 . 19 46 72 8 Peak Tracking Total 13 | . 7 9 10 10 3 . 1 5 . 5 8 13 8 Tactical Retreats 31 | . . 2 7 3 . . 1 2 . 4 4 8 . Traps | -11 -10 -9 -8 -7 -6 -5 -5 -4 -3 -3 -2 -2 -2 ------- Run | Yrd Mat Mat Mat Fac Fac Fac DSF Fac Res DSF Res Qua Frg Traps Triggered 8 | . . 2 . 1 1 . . . . 1 . 3 . Indirectly . | . . . . . . . . . . . . . . Trap Hack Attempts . | . . . . . . . . . . . . . . Triggered . | . . . . . . . . . . . . . . Disarmed 6 | . . . . . . . . . . . . 6 . Reprogrammed . | . . . . . . . . . . . . . . Reused . | . . . . . . . . . . . . . . Traps Extracted . | . . . . . . . . . . . . . . Installed . | . . . . . . . . . . . . . . Triggered . | . . . . . . . . . . . . . . Machines | -11 -10 -9 -8 -7 -6 -5 -5 -4 -3 -3 -2 -2 -2 ---------- Run | Yrd Mat Mat Mat Fac Fac Fac DSF Fac Res DSF Res Qua Frg Machines Disabled 37 | . . 4 . . 9 . . 1 . . 2 21 . Max in Single Turn 6 | . . 2 . . 6 . . 1 . . 1 5 . Garrison Access 4 | . . . 1 . 1 . . 1 . . 1 . . Machines Repaired . | . . . . . . . . . . . . . . Machines Dismantled . | . . . . . . . . . . . . . . Machines Sabotaged . | . . . . . . . . . . . . . . Overloaded Fab Kills . | . . . . . . . . . . . . . . Hacking | -11 -10 -9 -8 -7 -6 -5 -5 -4 -3 -3 -2 -2 -2 --------- Run | Yrd Mat Mat Mat Fac Fac Fac DSF Fac Res DSF Res Qua Frg Machines Accessed 43 | . . 1 5 5 8 2 . 8 1 . 3 10 . Terminals 21 | . . 1 2 1 4 1 . 3 1 . . 8 . Fabricators 6 | . . . . 2 1 . . 2 . . 1 . . Repair Stations 4 | . . . 1 . 1 . . 1 . . . 1 . Recycling Units 6 | . . . 1 2 1 1 . 1 . . . . . Scanalyzers . | . . . . . . . . . . . . . . Garrison Access 6 | . . . 1 . 1 . . 1 . . 2 1 . Total Hacks 106 | . . 2 15 13 20 3 . 23 1 . 5 24 . Successful 38 | . . . 7 2 8 3 . 9 1 . 1 7 . Failed 68 | . . 2 8 11 12 . . 14 . . 4 17 . Catastrophic 18 | . . 1 3 3 5 . . 1 . . 1 4 . Database Lockouts . | . . . . . . . . . . . . . . Manual 41 | . . . 8 5 10 1 . 5 . . 3 9 . Terminals 54 | . . 2 5 1 11 1 . 12 1 . . 21 . Fabricators 18 | . . . . 7 4 . . 5 . . 2 . . Repair Stations 9 | . . . 3 . 2 . . 3 . . . 1 . Recycling Units 12 | . . . 2 5 1 2 . 2 . . . . . Scanalyzers . | . . . . . . . . . . . . . . Garrison Access 13 | . . . 5 . 2 . . 1 . . 3 2 . Terminal Hacks 15 | . . . 2 . 2 1 . 4 1 . . 5 . Part Schematic 1 | . . . . . . . . 1 . . . . . Open DSF 2 | . . . . . . 1 . . 1 . . . . Level Access Points 1 | . . . . . . . . 1 . . . . . Branch Access Points 2 | . . . 2 . . . . . . . . . . Emergency Access Points 2 | . . . . . . . . . . . . 2 . Alert Level 1 | . . . . . . . . . . . . 1 . Locate Traps 2 | . . . . . 1 . . . . . . 1 . Disarm Traps 1 | . . . . . . . . . . . . 1 . Registered Components 2 | . . . . . 1 . . 1 . . . . . Registered Prototypes 1 | . . . . . . . . 1 . . . . . Fabricator Hacks 3 | . . . . . 1 . . 2 . . . . . Network Status 1 | . . . . . 1 . . . . . . . . Load Schematic 1 | . . . . . . . . 1 . . . . . Build 1 | . . . . . . . . 1 . . . . . Repair Station Hacks 1 | . . . 1 . . . . . . . . . . Refit 1 | . . . 1 . . . . . . . . . . Recycling Unit Hacks 5 | . . . 1 1 . 1 . 2 . . . . . Report Inventory 1 | . . . . . . 1 . . . . . . . Retrieve Components 4 | . . . 1 1 . . . 2 . . . . . Scanalyzer . | . . . . . . . . . . . . . . Garrison Access Hacks 2 | . . . 1 . . . . 1 . . . . . Unlock Access 1 | . . . 1 . . . . . . . . . . Seal Access 1 | . . . . . . . . 1 . . . . . Unauthorized Hacks 12 | . . . 2 1 5 1 . . . . 1 2 . Terminals 4 | . . . . . 3 . . . . . . 1 . Assimilate 1 | . . . . . 1 . . . . . . . . Botnet 2 | . . . . . 2 . . . . . . . . Disrupt 1 | . . . . . . . . . . . . 1 . Fabricators 2 | . . . . 1 1 . . . . . . . . Fabnet 2 | . . . . 1 1 . . . . . . . . Repair Stations 1 | . . . . . . . . . . . . 1 . Patch 1 | . . . . . . . . . . . . 1 . Recycling Units 2 | . . . 1 . . 1 . . . . . . . Mask 1 | . . . . . . 1 . . . . . . . Tunnel 1 | . . . 1 . . . . . . . . . . Scanalyzers . | . . . . . . . . . . . . . . Garrison Access 3 | . . . 1 . 1 . . . . . 1 . . Jam 3 | . . . 1 . 1 . . . . . 1 . . Data Cores Recovered . | . . . . . . . . . . . . . . Used . | . . . . . . . . . . . . . . Hacking Detections 36 | . . 1 4 5 8 . . 7 . . 2 9 . Full Trace Events 8 | . . 1 . 1 2 . . 2 . . 1 1 . Feedback Events 1 | . . . . . . . . . . . 1 . . Corruption 1 | . . . . . . . . . . . 1 . . Feedback Blocked . | . . . . . . . . . . . . . . Robot Schematics Acquired . | . . . . . . . . . . . . . . Robots Built . | . . . . . . . . . . . . . . Authchips . | . . . . . . . . . . . . . . Time . | . . . . . . . . . . . . . . Total Robot Build Rating . | . . . . . . . . . . . . . . Part Schematics Acquired 1 | . . . . . . . . 1 . . . . . Parts Built 2 | . . . . . . . . 2 . . . . . Authchips . | . . . . . . . . . . . . . . Time 117 | . . . . . . . . 117 . . . . . Total Part Build Rating 14 | . . . . . . . . 14 . . . . . Parts Repaired . | . . . . . . . . . . . . . . Time . | . . . . . . . . . . . . . . Parts Recycled . | . . . . . . . . . . . . . . Recycled Matter . | . . . . . . . . . . . . . . Retrieved Matter . | . . . . . . . . . . . . . . Retrieved Components 3 | . . . 1 2 . . . . . . . . . Parts Scanalyzed . | . . . . . . . . . . . . . . Part Schematics Acquired . | . . . . . . . . . . . . . . Parts Damaged . | . . . . . . . . . . . . . . Bothacking | -11 -10 -9 -8 -7 -6 -5 -5 -4 -3 -3 -2 -2 -2 ------------ Run | Yrd Mat Mat Mat Fac Fac Fac DSF Fac Res DSF Res Qua Frg Used RIF Installer . | . . . . . . . . . . . . . . Robots Hacked . | . . . . . . . . . . . . . . Non-combat . | . . . . . . . . . . . . . . Combat . | . . . . . . . . . . . . . . Robot Hacks Applied . | . . . . . . . . . . . . . . Relay Couplers Released 3 | . . . . . . . . . . . . 3 . Programmers 3 | . . . . . . . . . . . . 3 . Fabnet Peak Effective % 4 | . . . . . 3 4 4 1 . . . . . Robots Rewired . | . . . . . . . . . . . . . . Allies Hacked . | . . . . . . . . . . . . . . Hacks Repelled . | . . . . . . . . . . . . . . Allies | -11 -10 -9 -8 -7 -6 -5 -5 -4 -3 -3 -2 -2 -2 -------- Run | Yrd Mat Mat Mat Fac Fac Fac DSF Fac Res DSF Res Qua Frg Total Allies 1 | . . . . . 1 . . . . . . . . Largest Group 1 | . . . . . 1 1 1 1 . . . . . Highest-Rated Group 26 | . . . . . 26 26 26 26 . . . . . Highest-Rated Ally 26 | . . . . . 26 26 26 26 . . . . . Initial Warlord ECA Mod 27 | . . . . . . . . . . . 9 9 9 Total Orders . | . . . . . . . . . . . . . . Ally Attacks . | . . . . . . . . . . . . . . Total Damage . | . . . . . . . . . . . . . . Kills . | . . . . . . . . . . . . . . Allies Corrupted . | . . . . . . . . . . . . . . Allies Melted . | . . . . . . . . . . . . . . Intel | -11 -10 -9 -8 -7 -6 -5 -5 -4 -3 -3 -2 -2 -2 ------- Run | Yrd Mat Mat Mat Fac Fac Fac DSF Fac Res DSF Res Qua Frg Active Infowar (turns) 3994 | . . 10 337 . 530 26 61 445 43 310 868 1364 . Optics 722 | . . . . . . . . . . 218 503 1 . Sensors 1060 | . . . . . . . . . . . 312 748 . Structural 152 | . . . . . . . . . . . . 152 . Seismic 347 | . . 10 337 . . . . . . . . . . Machine Analysis 1605 | . . . . . 530 26 61 445 43 310 190 . . Jamming 981 | . . . . . . . . . . . . 981 . ECM 53 | . . . . . . . . . . . 53 . . Robot Analysis Total . | . . . . . . . . . . . . . . Derelict Logs Recovered . | . . . . . . . . . . . . . . Drone Launches . | . . . . . . . . . . . . . . Drone Recoveries . | . . . . . . . . . . . . . . Exploration | -11 -10 -9 -8 -7 -6 -5 -5 -4 -3 -3 -2 -2 -2 ------------- Run | Yrd Mat Mat Mat Fac Fac Fac DSF Fac Res DSF Res Qua Frg Turns Passed 5794 | 17 79 227 354 279 606 26 61 445 43 310 1087 2180 80 Spaces Moved 5243 | 27 113 407 527 461 807 46 109 627 69 253 582 1172 43 Core 1583 | 27 113 407 527 461 48 . . . . . . . . Treads . | . . . . . . . . . . . . . . Legs 1889 | . . . . . . . . . . 92 582 1172 43 Wheels . | . . . . . . . . . . . . . . Hover 1771 | . . . . . 759 46 109 627 69 161 . . . Flight . | . . . . . . . . . . . . . . Fastest Speed 28 | 50 50 50 50 50 40 43 43 38 61 28 120 116 120 Average Speed 73 | 50 50 50 50 50 45 43 45 43 61 74 120 119 120 Slowest Speed 350 | 50 50 50 50 50 350 43 48 108 61 190 120 124 120 Overloaded Moves 47 | . . . . . . . . 45 . 2 . . . Propulsion Burnouts . | . . . . . . . . . . . . . . Robots Hopped . | . . . . . . . . . . . . . . Potential Cave-ins 5 | . . . . . . . . . . . . 3 2 Cave-ins Triggered . | . . . . . . . . . . . . . . Exploration Rate (%) 34 | 3 34 41 47 20 21 1 94 20 4 93 17 79 3 Regions Visited 13 Branch Regions 2 Pre-discovered Areas 1 | . . . 1 . . . . . . . . . . Known Exits Taken 8 | . 1 1 1 . . 1 . 1 1 . 1 1 . Unknown Exits Taken 3 | 1 . . . 1 1 . . . . . . . . Scrap Searched . | . . . . . . . . . . . . . . Spaces Dug 53 | . . . . . 8 . 1 10 . . 11 13 10 Terrain Destroyed 453 | . . 32 23 10 62 . 1 10 . 74 80 151 10 Melee 24 | . . . . . 8 . 1 10 . . . 5 . Projectile 218 | . . . . . . . . . . 15 67 126 10 AOE 210 | . . 32 23 10 54 . . . . 59 12 20 . Terrain Rammed 1 | . . . . . . . . . . . 1 . . Walls Destroyed 1 | . . . . . . . . . . . 1 . . Machines Disabled . | . . . . . . . . . . . . . . Actions | -11 -10 -9 -8 -7 -6 -5 -5 -4 -3 -3 -2 -2 -2 --------- Run | Yrd Mat Mat Mat Fac Fac Fac DSF Fac Res DSF Res Qua Frg Total 6442 | 28 134 426 591 507 977 51 119 714 69 338 817 1610 61 Wait 254 | . 3 . 15 31 38 1 4 18 . 3 61 76 4 Move 5230 | 26 112 406 526 460 806 45 108 626 68 252 581 1171 43 Hop . | . . . . . . . . . . . . . . Pick Up 118 | . 5 4 6 1 23 1 2 10 1 11 19 35 . Fast Attach 138 | 2 2 3 7 8 18 1 1 4 . 21 20 50 1 Attach 73 | . . 5 3 1 5 2 . 5 . 4 12 33 3 Detach 30 | . . 2 4 1 2 1 . 2 . 1 4 13 . Swap 46 | . 1 . . . 5 . . 5 . 7 15 13 . Drop 149 | . 1 2 8 4 34 . 3 7 . 20 23 47 . Fire 268 | . . 4 10 1 3 . . . . 18 69 153 10 Melee 93 | . . . 3 . 38 . 1 37 . 1 . 13 . Ram 11 | . 10 . . . . . . . . . 1 . . Kick 18 | . . . . . . . . . . . 12 6 . Crush 9 | . . . 9 . . . . . . . . . . Escape Stasis 5 | . . . . . 5 . . . . . . . . Rewire . | . . . . . . . . . . . . . . Trap . | . . . . . . . . . . . . . . Miscellaneous . | . . . . . . . . . . . . . . Route ------- -11/Scrapyard -10/Materials -9/Materials -8/Materials -7/Factory -6/Factory -5/Factory -5/DSF -4/Factory (discovered 4 exits: *Res x4) -3/Research -3/DSF -2/Research -2/Quarantine (discovered 2 exits: [*Sec] / *Frg) -2/Protoforge History --------- Turn | Location | Event 10 | -11/Scrapyard | Discovered new exit (range 15) 18 | -11/Scrapyard | Entered Materials 93 | -10/Materials | Discovered new exit (range 10) 97 | -10/Materials | Identified exit to Materials 97 | -10/Materials | Entered another Materials area 97 | -9/Materials | Evolved 2 slots: Propulsion x2 239 | -9/Materials | Discovered new exit (range 9) 261 | -9/Materials | Identified exit to Materials 311 | -9/Materials | Build established: Mutant 324 | -9/Materials | Entered another Materials area 324 | -8/Materials | Evolved 2 slots: Propulsion x2 401 | -8/Materials | Lost 3 parts (3n) 561 | -8/Materials | Identified exit to Garrison 675 | -8/Materials | Discovered new exit (range 4) 677 | -8/Materials | Identified exit to Factory 678 | -8/Materials | Entered Factory 678 | -7/Factory | Evolved 2 slots: Weapon x2 695 | -7/Factory | Lost 3 parts (1n1u1w) 945 | -7/Factory | Discovered new exit (range 12) 957 | -7/Factory | Entered another Factory area 957 | -6/Factory | Evolved 2 slots: Utility x2 1285 | -6/Factory | Build established: Gladiator 1331 | -6/Factory | Discovered new exit (range 11) 1563 | -6/Factory | Entered another Factory area 1563 | -5/Factory | Accompanied by 1 ally 1563 | -5/Factory | Evolved 2 slots: Utility x2 1587 | -5/Factory | Identified exit to DSF 1589 | -5/Factory | Entered DSF 1589 | -5/DSF | Accompanied by 1 ally 1621 | -5/DSF | Discovered new exit (range 14) 1629 | -5/DSF | Additional patrols routed to DSF 1650 | -5/DSF | Entered Factory 1650 | -4/Factory | Accompanied by 1 ally 1650 | -4/Factory | Evolved 2 slots: Utility x2 1697 | -4/Factory | Identified exit to Research 1698 | -4/Factory | Build established: Scavenger-Gladiator 1975 | -4/Factory | Spotted B-86 Titan 2018 | -4/Factory | Fabricated Imp. Armor Integrity Analyzer? 2021 | -4/Factory | Lost 6 parts (1p2n2u1w) 2077 | -4/Factory | Lost 3 parts (2n1u) 2080 | -4/Factory | Build established: Gladiator 2095 | -4/Factory | Entered Research 2095 | -3/Research | Evolved 2 slots: Weapon x2 2137 | -3/Research | Identified exit to DSF 2138 | -3/Research | Entered DSF 2179 | -3/DSF | Additional patrols routed to DSF 2400 | -3/DSF | Sterilization system engaged 2420 | -3/DSF | Ambient heat levels rising (+10) 2433 | -3/DSF | Discovered new exit (range 14) 2435 | -3/DSF | Ambient heat levels rising (+10) 2448 | -3/DSF | Entered Research 2448 | -2/Research | Evolved 2 slots: Power x1, Utility x1 2654 | -2/Research | Destroyed 8 combat bots 2760 | -2/Research | Lost 6 parts (2p3u1w) 2854 | -2/Research | Garrison activated, responded to threat 2927 | -2/Research | Build established: Scavenger-Executioner 3325 | -2/Research | Discovered new exit (range 7) 3330 | -2/Research | Identified exit to Quarantine 3448 | -2/Research | First assault squad dispatched 3460 | -2/Research | System corruption reached 10% 3490 | -2/Research | Lost 3 parts (1n2u) 3535 | -2/Research | Entered Quarantine 3556 | -2/Quarantine | Found Alien Energy Cannon 3556 | -2/Quarantine | Identified Core Cannon 3749 | -2/Quarantine | Found Alien Slashing Weapon 3873 | -2/Quarantine | Lost 3 parts (1p2u) 4149 | -2/Quarantine | Lost 6 parts (1p1n4u) 4285 | -2/Quarantine | First assault squad dispatched 4287 | -2/Quarantine | Found Prototype Processor 4287 | -2/Quarantine | Identified Spectral Analyzer 4483 | -2/Quarantine | Core integrity fell below 50% 4535 | -2/Quarantine | Lost 7 parts (1p6w) 4538 | -2/Quarantine | Identified Sigix Broadsword 4733 | -2/Quarantine | Found Alien Artifact 4888 | -2/Quarantine | Scanned by Researcher 4931 | -2/Quarantine | Found Prototype Processor 4931 | -2/Quarantine | Identified Exp. Terrain Scan Processor 5059 | -2/Quarantine | Core integrity fell below 20% 5100 | -2/Quarantine | Lost 7 parts (1p4u2w) 5307 | -2/Quarantine | Lost 8 parts (2p3u3w) 5452 | -2/Quarantine | Build established: Scavenger-Tank 5575 | -2/Quarantine | Identified Terrabomb 5575 | -2/Quarantine | Used Terrabomb 5608 | -2/Quarantine | System corruption reached 30% 5616 | -2/Quarantine | Spotted Fortress 5675 | -2/Quarantine | Lost 8 parts (2p2u4w) 5709 | -2/Quarantine | Discovered new exit (range 7) 5709 | -2/Quarantine | Discovered new exit (range 6) 5714 | -2/Quarantine | Identified exit to Protoforge 5715 | -2/Quarantine | Entered Protoforge 5715 | -2/Protoforge | Spotted B-90 Cyclops 5751 | -2/Protoforge | Superfortress began startup sequence 5785 | -2/Protoforge | Spotted Hotshot 5786 | -2/Protoforge | Spotted Hotshot 5795 | -2/Protoforge | Destroyed by Hotshot with Precision Phase Gun Last Messages --------------- 05714_ EXIT=IDENTIFIED: PROTOFORGE LOCATION=PROTOFORGE AMBIENT_HEAT=-20 GOAL=ESCAPE 05717_ System corrupted: Component data lost. 05737_ System corrupted: Adv. Dynamic Insulation System rejected. 05737_ Acquired Adv. Dynamic Insulation System. 05751_ ALERT: Superfortress powering up for active defense. 05754_ Microcatalyzer disabled. 05758_ System corrupted: FCS attempts to trigger Enh. Hardcell Cannon. 05759_ Microcatalyzer disabled. 05770_ B-90 Cyclops activates siege mode. 05773_ AXSBO,HS:3G5GW,PG